bitfinex-derivatives/quotes_SOLF0:USTF0_20241021
["timestamp","ask_amount","ask_price","bid_price","bid_amount"]
[1729539499224,3.0047,166.45,166.39,2.0161]
[1729539499829,3.0045,166.46,166.41,3.0052]
[1729539500427,3.0045,166.46,166.42,3.0051]
[1729539502822,3.0045,166.46,166.39,2.0161]
[1729539502823,4.42,166.49,166.39,2.0161]
[1729539503030,3.0046,166.46,166.41,3.0052]
[1729539503425,3.0046,166.46,166.42,3.0051]
[1729539504834,3.0044,166.47,166.42,3.0051]
[1729539505233,3.0044,166.47,166.39,2.0161]
[1729539505627,3.0044,166.47,166.41,3.0053]
[1729539505842,3.0044,166.47,166.39,2.0161]
[1729539506533,3.0044,166.47,166.42,3.005]
[1729539510530,4.42,166.49,166.42,3.005]
[1729539510734,4.42,166.49,166.39,2.0161]
[1729539511236,3.0044,166.46,166.42,3.005]
[1729539521346,3.004,166.49,166.45,3.0046]
[1729539521534,4.42,166.5,166.45,3.0046]
[1729539521939,3.004,166.49,166.45,3.0046]
[1729539523844,3.004,166.49,166.46,3.0044]
[1729539525637,3.004,166.49,166.39,2.0161]
[1729539525838,3.004,166.49,166.47,3.0041]
[1729539526640,3.0045,166.46,166.44,3.0047]
[1729539526842,4.42,166.5,166.44,3.0047]
[1729539527152,4.42,166.5,166.39,6.4361]
[1729539527840,3.0043,166.47,166.45,3.0046]
[1729539528238,4.42,166.5,166.39,6.4361]
[1729539528537,3.0039,166.49,166.39,6.4361]
[1729539528940,3.0041,166.48,166.45,3.0045]
[1729539529851,3.0046,166.46,166.43,3.005]
[1729539530151,7.42811153,166.5,166.43,3.005]
[1729539530651,3.0043,166.47,166.43,3.005]
[1729539536552,3.0041,166.48,166.43,3.005]
[1729539536855,7.42811153,166.5,166.43,3.005]
[1729539537257,3.004,166.49,166.45,3.0045]
[1729539538254,3.0041,166.48,166.45,3.0045]
[1729539539554,3.004,166.49,166.42,1.50286598]
[1729539539754,3.004,166.49,166.43,1.50286598]
[1729539539954,3.004,166.49,166.4,4.42]
[1729539539955,3.004,166.49,166.44,3.9714]
[1729539540156,3.004,166.49,166.46,3.0043]
[1729539541150,7.42811153,166.5,166.44,3.9714]
[1729539541355,7.42811153,166.5,166.45,3.0045]
[1729539541859,3.004,166.49,166.45,3.0045]
[1729539542063,7.42811153,166.5,166.45,3.0045]
[1729539542560,3.00811153,166.5,166.45,3.0045]
[1729539542760,3.0042,166.48,166.45,3.0045]
[1729539542961,6.01020811,166.48,166.45,3.0045]
[1729539544058,3.0042,166.47,166.45,3.0045]
[1729539547169,3.00600811,166.48,166.39,2.0161]
[1729539547366,3.0046,166.45,166.4,9.72766487]
[1729539547669,2.97283669,166.47,166.41,1.50286487]
[1729539547865,3.0043,166.47,166.43,3.0048]
[1729539548068,6.01619762,166.47,166.43,3.0048]
[1729539548369,3.0043,166.47,166.43,3.0048]
[1729539548766,6.06487354,166.47,166.43,3.0048]
[1729539548968,3.0043,166.47,166.43,3.0048]
[1729539549568,5.96091139,166.47,166.43,3.0048]
[1729539551169,2.95661139,166.47,166.44,3.0047]
[1729539551370,2.95661139,166.47,166.4,8.2248]
[1729539551668,4.42,166.49,166.43,3.0048]
[1729539551669,3.0042,166.48,166.43,3.0048]
[1729539551877,2.98317386,166.47,166.43,3.0048]
[1729539552376,3.0043,166.47,166.43,3.0048]
[1729539552575,5.99077882,166.47,166.43,3.0048]
[1729539554069,4.42,166.49,166.4,8.2248]
[1729539554370,88.32484129,166.54,166.41,1.50288252]
[1729539554678,92.74484129,166.54,166.42,1.50288252]
[1729539554874,2.96634472,166.53,166.43,1.50288252]
[1729539555072,2.96634472,166.53,166.44,5.92288252]
[1729539555278,2.96634472,166.53,166.45,3.52368252]
[1729539555476,5.96954472,166.53,166.46,1.50288252]
[1729539555674,5.96954472,166.53,166.47,1.50288252]
[1729539555874,5.96954472,166.53,166.48,3.00541882]
[1729539556074,5.96954472,166.53,166.49,1.5025363]
[1729539556270,5.96954472,166.53,166.48,3.004]
[1729539557478,5.96954472,166.53,166.46,3.9091]
[1729539557677,5.96954472,166.53,166.48,3.004]
[1729539559284,3.0034,166.52,166.48,3.004]
[1729539561578,2.96634472,166.53,166.48,3.004]
[1729539561787,3.0037,166.5,166.46,3.9091]
[1729539561981,5.96885354,166.5,166.46,3.9091]
[1729539562182,3.0037,166.5,166.46,3.9091]
[1729539562384,3.0037,166.5,166.46,6.9134]
[1729539562787,3.0037,166.5,166.47,3.0042]
[1729539563980,3.0037,166.5,166.46,3.9091]
[1729539564187,3.0037,166.5,166.46,6.9134]
[1729539565882,3.05226675,166.51,166.46,3.9091]
[1729539566077,4.42,166.53,166.46,3.9091]
[1729539566278,7.36976986,166.53,166.46,3.9091]
[1729539566888,3.0035,166.51,166.47,3.0042]
[1729539569787,10.37296986,166.53,166.49,3.0038]
[1729539569983,7.36976986,166.53,166.49,3.0038]
[1729539570386,7.36976986,166.53,166.46,3.9091]
[1729539570587,10.37306986,166.53,166.48,3.004]
[1729539570787,10.37306986,166.53,166.46,3.9091]
[1729539571291,10.37306986,166.53,166.48,3.004]
[1729539571692,3.0034,166.52,166.48,3.004]
[1729539572287,7.36976986,166.53,166.46,3.9091]
[1729539572482,7.36976986,166.53,166.5,3.0036]
[1729539572688,7.36976986,166.53,166.46,3.9091]
[1729539573088,3.0033,166.52,166.49,3.0038]
[1729539573484,3.0033,166.52,166.46,3.9091]
[1729539573693,3.0033,166.52,166.48,3.004]
[1729539574694,3.0033,166.52,166.49,3.0039]
[1729539575493,3.0033,166.53,166.49,3.0039]
[1729539577291,3.03652525,166.54,166.49,3.0039]
[1729539577499,3.0033,166.52,166.49,3.0039]
[1729539580906,3.0033,166.52,166.5,3.0037]
[1729539585503,3.0033,166.52,166.49,3.0038]
[1729539588111,3.03652525,166.54,166.47,1.50255456]
[1729539588306,3.03652525,166.54,166.46,8.3291]
[1729539588506,3.03652525,166.54,166.47,1.50254726]
[1729539588707,3.0034,166.52,166.49,3.0038]
[1729539594417,3.0034,166.52,166.46,8.3291]
[1729539594612,3.0034,166.52,166.5,3.0037]
[1729539596210,3.0041,166.48,166.47,1.50254717]
[1729539596408,2.96743822,166.55,166.46,3.9091]
[1729539596616,4.42,166.56,166.47,1.50256351]
[1729539596915,18.06,166.63,166.48,1.50246074]
[1729539597111,4.42,166.62,166.49,7.42487774]
[1729539597320,3.0028,166.56,166.52,3.0033]
[1729539597615,4.42,166.62,166.52,3.0033]
[1729539597814,3.0029,166.55,166.52,3.0033]
[1729539598415,3.0029,166.55,166.51,3.0034]
[1729539598919,3.0028,166.56,166.52,3.0033]
[1729539599115,3.0028,166.56,166.5,1.50228489]
[1729539599321,3.0028,166.56,166.49,4.42]
[1729539599520,3.0028,166.56,166.51,3.0034]
[1729539599821,3.0028,166.56,166.49,4.42]
[1729539600016,3.0028,166.56,166.52,3.0033]
[1729539602815,3.0028,166.56,166.52,3.0032]
[1729539603015,3.0028,166.56,166.49,4.42]
[1729539603321,3.0028,166.56,166.49,5.92238574]
[1729539603525,3.0028,166.56,166.49,4.42]
[1729539603727,3.0028,166.56,166.5,1.50228645]
[1729539603925,3.0028,166.56,166.49,5.92232809]
[1729539604135,3.0028,166.56,166.53,3.0032]
[1729539607129,24.0624,166.65,166.49,5.92232809]
[1729539607130,24.0624,166.65,166.5,1.50224595]
[1729539607430,24.0624,166.65,166.54,3.0029]
[1729539607431,3.0023,166.58,166.54,3.0029]
[1729539607632,4.4,166.63,166.51,1.8756]
[1729539607823,3.003,166.55,166.51,7.4035]
[1729539608057,3.003,166.55,166.51,3.0035]
[1729539608438,3.003,166.55,166.47,1.8756]
[1729539608439,3.03573161,166.55,166.48,1.50244768]
[1729539608638,4.4,166.59,166.47,6.2756]
[1729539609542,3.0029,166.55,166.47,6.2756]
[1729539609742,6.0033,166.62,166.47,7.77810016]
[1729539609943,4.4,166.61,166.48,1.50241222]
[1729539610140,3.0024,166.58,166.55,3.0027]
[1729539612934,3.0024,166.58,166.53,5.7902]
[1729539613141,3.0024,166.58,166.54,3.0029]
[1729539613343,4.4,166.61,166.53,5.7902]
[1729539613538,4.4,166.61,166.53,3.8163]
[1729539613744,4.4,166.61,166.53,1.9252]
[1729539613945,3.0027,166.56,166.53,1.9252]
[1729539615045,3.0028,166.55,166.53,1.9252]
[1729539615545,3.0027,166.56,166.53,4.9284]
[1729539615753,4.4,166.61,166.53,1.9252]
[1729539616048,6.0029,166.63,166.53,1.9252]
[1729539616049,3.0019,166.6,166.54,3.0028]
[1729539616249,4.4,166.61,166.53,1.9252]
[1729539616446,4.4,166.61,166.54,2.027]
[1729539616638,3.0021,166.59,166.56,3.0026]
[1729539625059,3.0017,166.61,166.58,3.0022]
[1729539625554,21.17878099,166.71,166.55,3.00365136]
[1729539625755,8.85666616,166.7,166.54,6.427]
[1729539625959,4.4,166.69,166.55,8.47373171]
[1729539626159,3.001,166.65,166.56,3.00334444]
[1729539626460,3.001,166.65,166.57,3.00334444]
[1729539626656,3.001,166.65,166.58,6.3875]
[1729539626860,3.001,166.65,166.61,3.0016]
[1729539627658,4.4,166.68,166.6,1.9469]
[1729539627854,3.001,166.66,166.6,1.9469]
[1729539628360,3.001,166.66,166.62,3.0015]
[1729539629358,4.4,166.68,166.6,1.9469]
[1729539629359,3.001,166.65,166.6,1.9469]
[1729539629562,3.001,166.65,166.61,3.0016]
[1729539632756,4.4,166.69,166.6,1.9469]
[1729539632956,3.0009,166.66,166.62,3.0014]
[1729539633150,4.4,166.69,166.6,1.9469]
[1729539633759,3.0007,166.67,166.63,3.0013]
[1729539634457,5.79403927,166.7,166.6,1.9469]
[1729539634658,10.19403927,166.7,166.6,1.9469]
[1729539635057,3.0006,166.68,166.64,3.0011]
[1729539635665,5.79403927,166.7,166.63,4.4]
[1729539636366,5.79403927,166.7,166.64,2.0037]
[1729539636858,5.79403927,166.7,166.67,3.0005]
[1729539640159,5.79403927,166.7,166.68,3.0005]
[1729539640468,5.79403927,166.7,166.66,1.9459]
[1729539641458,5.79403927,166.7,166.66,4.9465]
[1729539641968,5.79403927,166.7,166.67,3.0006]
[1729539644976,3.0004,166.69,166.66,1.9459]
[1729539645369,5.79403927,166.7,166.66,1.9459]
[1729539645666,5.79403927,166.7,166.67,3.0006]
[1729539646060,5.79403927,166.7,166.66,1.9459]
[1729539646264,3.0003,166.69,166.66,1.9459]
[1729539648071,3.0003,166.69,166.66,4.9467]
[1729539648273,8.79423927,166.7,166.66,4.9467]
[1729539648474,5.79403927,166.7,166.66,4.9467]
[1729539649075,5.79403927,166.7,166.66,1.9459]
[1729539649470,5.79403927,166.7,166.67,3.0006]
[1729539649672,5.79403927,166.7,166.66,1.9459]
[1729539650068,5.79403927,166.7,166.65,1.9551]
[1729539650468,5.79403927,166.7,166.64,2.0037]
[1729539650469,5.79403927,166.7,166.62,4.4]
[1729539651179,3.0006,166.68,166.64,3.0012]
[1729539652375,5.79403927,166.7,166.62,4.4]
[1729539654179,5.79403927,166.7,166.68,3.0004]
[1729539656177,5.79403927,166.7,166.67,3.0005]
[1729539656478,5.79403927,166.7,166.62,4.4]
[1729539656984,5.79403927,166.7,166.67,3.0005]
[1729539657185,5.79403927,166.7,166.62,4.4]
[1729539657775,5.79403927,166.7,166.67,3.0005]
[1729539658476,5.79403927,166.7,166.64,3.0011]
[1729539658677,5.79403927,166.7,166.65,2.0116]
[1729539658876,5.79403927,166.7,166.66,4.4]
[1729539659286,5.79403927,166.7,166.68,3.0004]
[1729539660382,5.79403927,166.7,166.69,3.0003]
[1729539660589,21.17878099,166.71,166.66,6.2757]
[1729539660775,18.12428099,166.71,166.67,1.847]
[1729539661191,18.12428099,166.71,166.67,4.88107196]
[1729539661581,18.12428099,166.71,166.7,3.0001]
[1729539661888,18.12428099,166.71,166.7,7.4001]
[1729539662684,20.2413032,166.72,166.71,2.9999]
[1729539663985,11.17906257,166.73,166.72,2.9997]
[1729539664287,12.22228523,166.74,166.7,4.4]
[1729539664484,12.22228523,166.74,166.73,2.9996]
[1729539665183,12.71682301,166.77,166.7,4.4]
[1729539665386,3.28960156,166.75,166.74,2.9994]
[1729539665579,12.71682301,166.77,166.74,4.4]
[1729539665886,15.19799599,166.78,166.77,2.9988]
[1729539667790,15.19799599,166.78,166.69,11.39906955]
[1729539667983,15.19799599,166.78,166.76,2.999]
[1729539668285,15.19799599,166.78,166.75,4.4]
[1729539668491,15.19799599,166.78,166.76,2.999]
[1729539669285,15.19799599,166.78,166.77,2.9988]
[1729539669491,15.19799599,166.78,166.75,4.4]
[1729539669891,15.19799599,166.78,166.77,2.9988]
[1729539670986,15.19799599,166.78,166.7,111.28170512]
[1729539671292,15.19799599,166.78,166.7,4.4]
[1729539671293,18.15559503,166.78,166.7,4.4]
[1729539671492,2.9991,166.76,166.7,4.4]
[1729539671789,2.9991,166.76,166.71,2.9998]
[1729539672283,1.8439,166.77,166.75,2.9992]
[1729539672487,1.8439,166.77,166.7,4.4]
[1729539673183,1.8439,166.77,166.75,2.9992]
[1729539673695,1.8439,166.77,166.7,4.4]
[1729539674190,1.8439,166.77,166.75,2.9991]
[1729539674392,15.19799599,166.78,166.7,4.4]
[1729539674695,15.19799599,166.78,166.76,2.9988]
[1729539674995,15.19799599,166.78,166.74,4.4]
[1729539675197,15.19799599,166.78,166.77,2.9988]
[1729539681610,7.65084894,166.79,166.74,4.4]
[1729539681812,8.58821426,166.83,166.82,2.9979]
[1729539693800,8.58821426,166.83,166.81,2.9981]
[1729539694309,8.58821426,166.83,166.78,2.9985]
[1729539694606,1.8424,166.82,166.75,4.4]
[1729539695606,1.8424,166.82,166.8,2.9982]
[1729539695801,8.58821426,166.83,166.75,4.4]
[1729539696008,8.58821426,166.83,166.82,2.9979]
[1729539696208,8.58821426,166.83,166.75,4.4]
[1729539696503,8.58821426,166.83,166.81,2.998]
[1729539701510,8.58821426,166.83,166.77,4.4]
[1729539701718,8.58821426,166.83,166.8,2.9983]
[1729539705112,2.0105,166.82,166.74,4.4]
[1729539705715,4.4,166.81,166.66,6.0014]
[1729539706007,4.4,166.81,166.67,1.1023889]
[1729539706213,4.4,166.81,166.66,10.4014]
[1729539706417,2.9989,166.77,166.72,2.9996]
[1729539706717,6.4105,166.76,166.72,2.9996]
[1729539710614,6.4105,166.76,166.66,4.4]
[1729539711230,6.4105,166.76,166.64,3.8502]
[1729539711231,2.9993,166.75,166.7,3.0]
[1729539711818,4.4,166.74,166.7,3.0]
[1729539713114,4.4,166.74,166.71,2.9999]
[1729539719223,5.0096,166.76,166.71,2.9999]
[1729539719425,4.4,166.75,166.71,2.9999]
[1729539720929,4.4,166.75,166.72,2.9997]
[1729539726126,4.4,166.74,166.72,2.9997]
[1729539729642,4.4,166.74,166.66,1.5002709]
[1729539729830,9.22,166.71,166.7,2.9999]
[1729539738743,4.4,166.74,166.7,2.9999]
[1729539739039,9.22,166.71,166.7,2.9999]
[1729539742740,9.22,166.71,166.7,2.9999]
[1729539744237,4.4,166.74,166.72,2.9997]
[1729539744443,9.22,166.73,166.72,2.9997]
[1729539744738,9.22,166.73,166.67,9.22]
[1729539745039,9.22,166.73,166.71,2.9998]
[1729539746137,91.40821426,166.83,166.71,9.22]
[1729539746337,4.4,166.77,166.76,2.9989]
[1729539746538,5.8251,166.82,166.72,9.22]
[1729539746539,4.4,166.79,166.72,9.22]
[1729539746729,9.22,166.78,166.72,9.22]
[1729539747038,9.22,166.78,166.7,5.7991]
[1729539747039,3.8556,166.82,166.7,5.7991]
[1729539747247,4.4,166.82,166.77,9.22]
[1729539747434,13.62,166.82,166.77,9.22]
[1729539747630,12.98821426,166.83,166.77,9.22]
[1729539747833,9.22,166.82,166.77,9.22]
[1729539748039,9.22,166.82,166.78,2.9985]
[1729539748236,9.22,166.82,166.77,9.22]
[1729539748541,9.22,166.82,166.8,2.9982]
[1729539749540,9.22,166.81,166.8,2.9982]
[1729539750544,12.98821426,166.83,166.8,2.9982]
[1729539750743,12.98821426,166.83,166.81,2.9981]
[1729539750936,9.22,166.82,166.81,2.9981]
[1729539751841,12.98821426,166.83,166.77,9.22]
[1729539752040,12.98821426,166.83,166.73,4.4]
[1729539752041,22.20821426,166.83,166.73,4.4]
[1729539752240,22.20821426,166.83,166.77,9.22]
[1729539752741,22.20821426,166.83,166.81,2.9981]
[1729539753243,8.58821426,166.83,166.81,2.9981]
[1729539753542,8.58821426,166.83,166.82,2.9979]
[1729539753845,8.58821426,166.83,166.73,7.33223432]
[1729539754043,9.22,166.81,166.79,2.9984]
[1729539754647,9.22,166.81,166.73,2.99927584]
[1729539754648,9.22,166.8,166.73,2.99927584]
[1729539754845,9.22,166.8,166.72,120.48576842]
[1729539754846,9.22,166.77,166.72,120.48576842]
[1729539755039,9.22,166.77,166.75,2.999]
[1729539755342,9.22,166.77,166.72,120.48576842]
[1729539755743,9.22,166.77,166.75,2.9991]
[1729539758341,9.22,166.77,166.72,120.48576842]
[1729539759353,9.22,166.76,166.74,2.9993]
[1729539759645,9.22,166.76,166.72,111.26576842]
[1729539760438,9.22,166.73,166.7,3.7875]
[1729539760638,9.22,166.73,166.7,1.8801]
[1729539760845,9.22,166.73,166.71,2.9999]
[1729539770955,9.22,166.73,166.72,2.9997]
[1729539775660,4.4,166.76,166.72,2.9997]
[1729539776061,9.22,166.74,166.72,2.9997]
[1729539776661,4.4,166.76,166.74,2.9993]
[1729539776966,9.22,166.76,166.71,3.00030445]
[1729539777162,9.22,166.76,166.72,3.00030445]
[1729539777365,9.22,166.76,166.71,1.5001672]
[1729539777563,9.22,166.76,166.74,2.9993]
[1729539778761,9.22,166.75,166.74,2.9993]
[1729539780565,9.22,166.75,166.42,6.4369432]
[1729539780566,9.22,166.75,166.71,3.00001128]
[1729539780763,9.22,166.72,166.69,3.00001128]
[1729539780967,9.22,166.7,166.68,1.50001292]
[1729539781157,9.22,166.7,166.66,3.8095]
[1729539781363,9.22,166.7,166.67,3.0005979]
[1729539781566,9.22,166.7,166.69,3.0001]
[1729539782771,9.22,166.7,166.69,4.50044587]
[1729539783062,9.22,166.7,166.69,3.0001]
[1729539783256,9.22,166.7,166.68,6.00098857]
[1729539783464,9.22,166.7,166.68,3.0003]
[1729539783663,9.22,166.7,166.68,6.00104538]
[1729539783866,9.22,166.7,166.68,3.0003]
[1729539784272,9.22,166.7,166.69,3.0003]
[1729539793868,4.4,166.73,166.67,10.72035902]
[1729539794074,9.22,166.72,166.7,2.9999]
[1729539794575,9.22,166.72,166.67,9.22]
[1729539794776,9.22,166.72,166.71,2.9999]
[1729539796175,2.81783404,166.74,166.71,11.40034124]
[1729539796372,0.91590486,166.74,166.72,1.50030082]
[1729539796565,3.26753456,166.74,166.73,8.40169188]
[1729539797070,4.4,166.74,166.73,21.19032249]
[1729539797270,7.36994367,166.75,166.73,23.28949932]
[1729539797471,0.5659738,166.74,166.73,12.78863061]
[1729539797773,0.5659738,166.74,166.73,23.29074743]
[1729539797970,0.5659738,166.74,166.73,10.50211682]
[1729539798174,0.5659738,166.74,166.73,21.59507942]
[1729539798375,0.5659738,166.74,166.73,24.59467942]
[1729539802475,7.34594655,166.75,166.73,24.59467942]
[1729539802679,9.22,166.74,166.73,2.9996]
[1729539802881,9.22,166.74,166.73,24.59419818]
[1729539804382,9.22,166.74,166.73,20.09333967]
[1729539804681,9.22,166.74,166.73,2.9996]
[1729539805577,9.22,166.74,166.59,6.0041]
[1729539805777,9.22,166.66,166.61,17.236]
[1729539806379,9.22,166.66,166.65,3.001]
[1729539825995,7.4002,166.7,166.65,3.001]
[1729539826195,9.22,166.66,166.65,3.001]
[1729539826397,9.22,166.66,166.61,6.045]
[1729539826594,9.22,166.66,166.57,4.4]
[1729539826595,9.22,166.62,166.57,4.4]
[1729539827497,9.22,166.62,166.57,5.82]
[1729539827895,9.22,166.62,166.61,3.0017]
[1729539828396,1.6856,166.73,166.61,9.22]
[1729539828594,1.6856,166.73,166.64,9.22]
[1729539828595,9.22,166.68,166.64,9.22]
[1729539829394,9.22,166.68,166.61,4.4]
[1729539829395,9.22,166.7,166.65,9.22]
[1729539830798,4.6853,166.73,166.65,9.22]
[1729539830997,9.22,166.7,166.65,9.22]
[1729539831700,1.6856,166.73,166.65,9.22]
[1729539831902,9.22,166.72,166.67,9.22]
[1729539832696,9.22,166.72,166.69,3.0002]
[1729539837607,9.22,166.72,166.68,3.0003]
[1729539837901,9.22,166.71,166.67,9.22]
[1729539838207,9.22,166.71,166.65,13.62]
[1729539838506,9.22,166.71,166.65,9.22]
[1729539838708,9.22,166.71,166.67,3.0006]
[1729539839209,4.4,166.74,166.65,9.22]
[1729539839412,13.62,166.74,166.7,3.0]
[1729539839903,16.6194,166.74,166.7,3.0]
[1729539841510,16.6194,166.74,166.68,9.22]
[1729539841804,9.22,166.72,166.7,3.0]
[1729539842008,9.22,166.72,166.68,9.22]
[1729539842211,9.22,166.71,166.68,3.0004]
[1729539843411,9.22,166.69,166.64,10.6221]
[1729539843806,9.22,166.69,166.66,3.0007]
[1729539844215,9.22,166.69,166.64,10.6221]
[1729539844513,3.0,166.71,166.67,3.0005]
[1729539844715,9.22,166.71,166.66,9.22]
[1729539845616,9.22,166.71,166.68,3.0005]
[1729539847018,12.2203,166.69,166.65,3.0009]
[1729539847912,9.22,166.69,166.65,3.0009]
[1729539848512,9.22,166.69,166.66,3.0008]
[1729539850207,12.2204,166.69,166.64,3.0011]
[1729539851321,3.0005,166.68,166.64,3.0011]
[1729539852819,9.22,166.67,166.64,3.0011]
[1729539856816,9.22,166.68,166.64,9.22]
[1729539857022,4.38,166.69,166.66,3.0007]
[1729539860122,2.9982,166.81,166.75,2.9991]
[1729539860321,9.22,166.77,166.72,9.22]
[1729539860825,9.22,166.79,166.74,9.22]
[1729539861823,9.22,166.79,166.75,2.9991]
[1729539863219,9.22,166.8,166.75,9.22]
[1729539864125,5.7678,166.81,166.75,9.22]
[1729539864326,9.22,166.8,166.75,9.22]
[1729539864527,9.22,166.8,166.78,2.9986]
[1729539864923,9.22,166.79,166.7,4.38]
[1729539865124,9.22,166.77,166.71,13.6]
[1729539866930,9.22,166.77,166.75,2.9992]
[1729539870130,2.9984,166.8,166.75,2.9992]
[1729539870131,9.22,166.78,166.75,2.9992]
[1729539873629,9.22,166.78,166.72,9.22]
[1729539873835,9.22,166.77,166.74,2.9993]
[1729539875134,9.22,166.77,166.73,2.9995]
[1729539879039,9.22,166.75,166.71,2.9998]
[1729539880039,9.22,166.75,166.72,2.9997]
[1729539880938,13.6,166.77,166.72,9.22]
[1729539881140,4.38,166.77,166.73,9.22]
[1729539881634,4.38,166.77,166.68,4.38]
[1729539881933,9.22,166.75,166.7,9.22]
[1729539882138,9.22,166.75,166.71,2.9998]
[1729539883438,4.38,166.77,166.72,9.22]
[1729539883938,4.38,166.77,166.74,2.9993]
[1729539886232,4.38,166.77,166.72,9.22]
[1729539886436,4.38,166.77,166.75,2.9992]
[1729539890641,7.3789,166.77,166.74,2.9992]
[1729539891436,7.3789,166.77,166.71,9.22]
[1729539891638,7.3789,166.77,166.74,2.9993]
[1729539891639,9.22,166.76,166.74,2.9993]
[1729539892343,9.22,166.76,166.72,2.9997]
[1729539892344,9.22,166.75,166.72,2.9997]
[1729539892542,9.22,166.75,166.7,9.22]
[1729539893239,9.22,166.72,166.65,1.2793]
[1729539893441,9.22,166.72,166.63,4.38]
[1729539893442,9.22,166.68,166.63,4.38]
[1729539893645,9.22,166.68,166.63,9.22]
[1729539893846,9.22,166.68,166.66,3.0007]
[1729539894547,9.22,166.68,166.67,3.0006]
[1729539894752,9.22,166.7,166.67,3.0006]
[1729539900352,12.2203,166.69,166.62,4.38]
[1729539900563,9.22,166.69,166.64,9.22]
[1729539900752,9.22,166.7,166.64,9.22]
[1729539901045,9.22,166.7,166.62,4.38]
[1729539901046,4.38,166.76,166.69,9.22]
[1729539901246,4.38,166.76,166.71,9.22]
[1729539901447,4.38,166.76,166.73,9.22]
[1729539901646,4.38,166.76,166.74,2.9994]
[1729539903950,4.38,166.76,166.67,2.6039]
[1729539904152,9.22,166.75,166.72,2.9996]
[1729539910652,4.38,166.76,166.74,2.9994]
[1729539910856,4.38,166.76,166.7,9.22]
[1729539911058,13.6,166.76,166.7,9.22]
[1729539911452,13.6,166.76,166.73,2.9994]
[1729539911653,11.8352,166.79,166.74,9.22]
[1729539911852,12.26543075,166.82,166.77,9.22]
[1729539912054,4.38,166.81,166.79,2.9984]
[1729539912556,4.38,166.81,166.77,9.22]
[1729539912758,4.38,166.81,166.78,2.9986]
[1729539914450,4.38,166.81,166.77,9.22]
[1729539914650,4.38,166.81,166.79,2.9985]
[1729539915856,15.26343075,166.82,166.79,2.9985]
[1729539916159,16.64543075,166.82,166.79,2.9985]
[1729539916555,3.04543075,166.82,166.78,9.22]
[1729539916761,4.25469682,166.87,166.81,9.22]
[1729539916957,230.0,167.09,166.86,9.22]
[1729539916958,2.98368757,166.94,166.86,9.22]
[1729539917150,16.08918006,166.95,166.86,9.22]
[1729539917151,6.86918006,166.95,166.9,9.22]
[1729539917350,6.86918006,166.95,166.9,12.2165]
[1729539918256,6.86918006,166.95,166.83,87.58349134]
[1729539918257,9.22,166.92,166.85,7.3773]
[1729539918467,9.22,166.92,166.87,9.22]
[1729539919054,15.93147652,166.91,166.87,9.22]
[1729539919356,15.93147652,166.91,166.88,2.9967]
[1729539919755,9.22,166.9,166.87,2.997]
[1729539920061,9.22,166.9,166.84,9.22]
[1729539920261,6.71147652,166.91,166.83,87.58349134]
[1729539920456,6.71147652,166.91,166.82,1.2269]
[1729539920655,5.7119,166.9,166.82,1.2269]
[1729539921055,5.7119,166.9,166.85,2.9972]